bitfinex-derivatives/quotes_BNBF0:USTF0_20250417
["timestamp","ask_amount","ask_price","bid_price","bid_amount"]
[1744901830100,0.34044871,587.46,586.63,0.585]
[1744901830294,0.30396417,587.45,586.63,0.585]
[1744901830493,0.3404603,587.44,586.63,0.585]
[1744901830695,0.30396417,587.43,586.63,0.585]
[1744901831095,0.34047189,587.42,586.63,0.585]
[1744901831295,0.30396417,587.41,586.63,0.585]
[1744901831600,0.34048348,587.4,586.63,0.585]
[1744901832001,0.30398918,587.39,586.63,0.585]
[1744901832603,0.34049507,587.38,586.63,0.585]
[1744901832797,0.30398918,587.37,586.63,0.585]
[1744901832998,0.34050667,587.36,586.63,0.585]
[1744901835602,0.34050667,587.36,586.64,0.486]
[1744901838898,0.30397313,587.35,586.64,0.486]
[1744901839698,0.30397313,587.35,586.65,0.69]
[1744901841005,0.763,587.34,586.65,0.69]
[1744901841203,0.30397313,587.33,586.65,0.69]
[1744901841403,0.763,587.34,586.65,0.69]
[1744901841600,0.30397236,587.33,586.65,0.69]
[1744901844607,0.34052986,587.32,586.65,0.69]
[1744901844901,0.30397236,587.31,586.65,0.69]
[1744901847007,0.34054146,587.3,586.65,0.69]
[1744901847409,0.30397236,587.29,586.65,0.69]
[1744901847707,0.34055305,587.28,586.65,0.69]
[1744901851807,0.30388919,587.27,586.65,0.69]
[1744901852007,0.34056465,587.26,586.65,0.69]
[1744901852207,0.30388919,587.25,586.65,0.69]
[1744901852406,0.34057625,587.24,586.65,0.69]
[1744901852809,0.3038961,587.23,586.65,0.69]
[1744901853009,0.34058785,587.22,586.65,0.69]
[1744901854511,0.30389582,587.21,586.65,0.69]
[1744901854709,0.34059945,587.2,586.65,0.69]
[1744901854912,0.30389582,587.19,586.65,0.69]
[1744901857417,0.34059945,587.2,586.65,0.69]
[1744901857611,0.30390998,587.19,586.65,0.69]
[1744901858413,0.34061105,587.18,586.65,0.69]
[1744901858617,0.30390998,587.17,586.65,0.69]
[1744901858817,0.64452683,587.17,586.65,0.69]
[1744901859019,0.30390998,587.16,586.65,0.69]
[1744901859214,0.30390998,587.16,586.65,1.382]
[1744901859414,0.34062845,587.15,586.65,1.382]
[1744901859719,0.30390998,587.14,586.65,1.382]
[1744901860217,0.34064006,587.13,586.65,1.382]
[1744901860418,0.30390998,587.12,586.65,1.382]
[1744901860613,0.34065166,587.11,586.65,1.382]
[1744901860811,0.30384867,587.1,586.65,1.382]
[1744901861112,0.34066327,587.09,586.65,1.382]
[1744901861311,0.30384867,587.08,586.65,1.382]
[1744901861513,0.34067487,587.07,586.65,1.382]
[1744901861718,0.30384867,587.06,586.65,1.382]
[1744901862020,0.64452934,587.06,586.65,1.382]
[1744901862319,0.30384867,587.05,586.65,1.382]
[1744901864222,0.34068067,587.06,586.65,1.382]
[1744901866718,0.34068067,587.06,586.65,0.692]
[1744901877527,0.34068067,587.06,586.61,0.715]
[1744901880728,0.34068067,587.06,586.61,1.226]
[1744901890736,0.34066327,587.09,586.61,1.226]
[1744901892039,0.30400529,587.08,586.61,1.226]
[1744901892239,0.34067487,587.07,586.61,1.226]
[1744901893742,0.95467487,587.07,586.61,1.226]
[1744901895543,0.30395018,587.06,586.61,1.226]
[1744901896945,0.34068648,587.05,586.61,1.226]
[1744901897446,0.30394811,587.04,586.61,1.226]
[1744901897640,0.34069809,587.03,586.61,1.226]
[1744901897839,0.30394811,587.02,586.61,1.226]
[1744901898044,0.34070969,587.01,586.61,1.226]
[1744901898446,0.60067642,587.0,586.61,1.226]
[1744901898645,0.64466941,586.99,586.61,1.226]
[1744901898846,0.3407213,586.99,586.61,1.226]
[1744901899046,0.30400795,586.98,586.61,1.226]
[1744901899347,0.34073291,586.97,586.61,1.226]
[1744901899546,0.30400795,586.96,586.61,1.226]
[1744901899746,0.34074452,586.95,586.61,1.226]
[1744901899948,0.30400795,586.94,586.61,1.226]
[1744901900247,0.34075613,586.93,586.61,1.226]
[1744901900447,0.30400795,586.92,586.61,1.226]
[1744901900643,0.34076774,586.91,586.61,1.226]
[1744901900848,0.30400795,586.9,586.61,1.226]
[1744901901049,0.34077936,586.89,586.61,1.226]
[1744901904856,0.34077936,586.89,586.61,0.715]
[1744901905454,0.30400591,586.88,586.61,0.715]
[1744901906452,0.34077936,586.89,586.61,0.715]
[1744901920368,0.34077936,586.89,586.6,0.607]
[1744901924471,0.34077936,586.89,586.44,1.13]
[1744901930171,1.05577936,586.89,586.44,1.13]
[1744901979917,0.715,586.89,586.44,1.13]
[1744901982220,0.715,586.89,586.44,1.727]
[1744902084414,0.715,586.89,586.45,0.31305702]
[1744902084611,1.29824102,588.23,586.45,0.31305702]
[1744902084811,0.34001462,588.21,586.45,0.31305702]
[1744902085013,0.30382635,588.2,586.39,0.29656648]
[1744902085209,0.34003196,588.18,586.4,0.65412114]
[1744902085511,0.30382635,588.17,586.41,0.65411532]
[1744902085715,0.30382635,588.16,586.42,0.31305702]
[1744902086015,0.30382635,588.15,586.42,0.31305702]
[1744902086217,0.30382635,588.14,586.42,0.31305702]
[1744902086418,0.30382635,588.13,586.42,0.31305702]
[1744902086716,0.30382635,588.12,586.42,0.31305702]
[1744902086917,0.30382635,588.17,586.42,0.31305702]
[1744902087217,0.30382635,588.16,586.42,0.31305702]
[1744902087417,0.30377877,588.15,586.43,0.31299544]
[1744902087725,0.30377877,588.14,586.43,0.731]
[1744902087915,0.30377877,588.13,586.44,0.65403629]
[1744902088117,0.30377877,588.13,586.45,0.65403048]
[1744902088317,0.30377877,588.13,586.46,1.11699544]
[1744902088517,0.30377877,588.13,586.47,0.31299544]
[1744902089113,0.30377877,588.13,586.48,0.532]
[1744902089313,0.30377877,588.13,586.49,0.31299544]
[1744902089715,0.30377877,588.13,586.5,0.34100596]
[1744902089915,0.34007243,588.11,586.5,0.34100596]
[1744902090116,0.30377877,588.1,586.5,0.34100596]
[1744902090316,0.34008978,588.08,586.5,0.34100596]
[1744902090512,0.30377877,588.07,586.5,0.34100596]
[1744902090716,0.34010713,588.05,586.5,0.34100596]
[1744902090914,0.30377877,588.04,586.5,0.34100596]
[1744902091118,0.34012448,588.02,586.5,0.34100596]
[1744902091417,0.30377877,588.01,586.5,0.34100596]
[1744902091816,0.34014183,587.99,586.5,0.34100596]
[1744902092014,0.30377877,587.98,586.5,0.34100596]
[1744902092414,0.34015919,587.96,586.5,0.34100596]
[1744902094014,0.3037468,587.95,586.51,0.31296333]
[1744902094216,0.3037468,587.95,586.52,0.34099433]
[1744902094417,0.34017076,587.94,586.53,0.31296333]
[1744902094614,0.3037468,587.93,586.54,0.34098271]
[1744902094920,0.34018233,587.92,586.55,0.31296333]
[1744902095120,0.3037468,587.91,586.55,0.31296333]
[1744902095320,0.34019391,587.9,586.55,0.31296333]
[1744902095519,0.34019391,587.9,586.54,0.34098271]
[1744902099826,0.2964086,587.89,586.54,0.34098271]
[1744902100022,0.34020548,587.88,586.54,0.34098271]
[1744902102336,0.30377887,587.87,586.54,0.34098271]
[1744902102539,0.60020641,587.87,586.54,0.34098271]
[1744902102724,0.30377887,587.86,586.54,0.34098271]
[1744902102925,0.30377887,587.86,586.54,0.94898271]
[1744902103124,0.34022863,587.84,586.54,0.94898271]
[1744902103428,0.30377887,587.83,586.54,0.94898271]
[1744902103734,0.3402402,587.82,586.54,0.94898271]
[1744902103940,0.30377887,587.81,586.54,0.94898271]
[1744902104133,0.34025178,587.8,586.54,0.94898271]
[1744902104327,0.30377887,587.79,586.54,0.94898271]
[1744902104531,0.34026336,587.78,586.54,0.94898271]
[1744902106234,0.34026336,587.78,586.54,1.75398271]
[1744902106837,0.34026336,587.78,586.54,2.40298271]
[1744902107438,0.30379099,587.77,586.54,2.40298271]
[1744902107733,0.30379099,587.77,586.55,0.31300951]
[1744902108139,0.34027494,587.76,586.55,0.31300951]
[1744902108339,0.30379099,587.75,586.55,0.31300951]
[1744902108540,0.34028652,587.74,586.54,2.40298271]
[1744902108739,0.30380819,587.73,586.55,0.31302495]
[1744902108939,0.3402981,587.72,586.55,0.31302495]
[1744902109136,0.30380819,587.71,586.55,0.31302495]
[1744902109332,0.34030968,587.7,586.55,0.31302495]
[1744902109534,0.30380819,587.69,586.54,2.40298271]
[1744902110239,0.34032126,587.68,586.54,2.40298271]
[1744902110436,0.30380819,587.67,586.55,0.31302994]
[1744902110637,0.34033284,587.66,586.55,0.31302994]
[1744902110839,0.30380819,587.65,586.55,0.31302994]
[1744902111139,0.34034442,587.64,586.55,0.31302994]
[1744902111342,0.30380819,587.63,586.55,0.31302994]
[1744902111539,0.34035601,587.62,586.55,0.31302994]
[1744902111735,0.34035601,587.62,586.54,2.40298271]
[1744902111935,0.34035601,587.62,586.55,0.31302517]
[1744902113741,0.821,587.61,586.55,0.31302517]
[1744902114041,0.34036759,587.6,586.54,2.40298271]
[1744902114342,0.34036759,587.6,586.55,0.31301865]
[1744902115241,0.34036759,587.6,586.54,2.40298271]
[1744902115744,0.34036759,587.6,586.54,2.69944686]
[1744902116146,0.34036759,587.6,586.55,0.31301988]
[1744902116644,0.34036759,587.6,586.54,2.69944686]
[1744902117246,0.34036759,587.6,586.54,2.40298271]
[1744902117648,0.34036759,587.6,586.54,2.69944813]
[1744902119347,0.34036759,587.6,586.55,0.31301994]
[1744902122446,0.34036759,587.6,586.54,2.69944813]
[1744902122652,0.34036759,587.6,586.55,0.31296094]
[1744902125857,0.34036759,587.6,586.56,0.3129303]
[1744902126152,0.34036759,587.6,586.57,0.3129303]
[1744902126355,0.34036759,587.6,586.55,0.3129303]
[1744902126655,0.34036759,587.6,586.56,0.3129303]
[1744902127452,0.821,587.61,586.56,0.3129303]
[1744902129451,0.821,587.61,586.55,0.3129303]
[1744902129750,0.821,587.61,586.55,0.60930861]
[1744902129950,0.821,587.61,586.56,0.3129303]
[1744902130951,0.821,587.61,586.57,0.34096527]
[1744902131155,0.821,587.61,586.58,0.3129303]
[1744902131351,0.821,587.61,586.59,0.34095364]
[1744902131557,0.821,587.61,586.6,0.3129303]
[1744902131856,0.821,587.61,586.61,0.34094202]
[1744902132058,0.821,587.61,586.62,0.3129303]
[1744902132358,0.821,587.61,586.63,0.31291413]
[1744902132652,0.821,587.61,586.64,0.31291413]
[1744902132856,0.821,587.61,586.62,0.31291413]
[1744902134155,0.821,587.61,586.63,0.794]
[1744902134355,0.821,587.61,586.64,0.31294724]
[1744902134559,0.821,587.61,586.63,0.794]
[1744902135063,0.821,587.61,586.64,0.716]
[1744902139863,0.29641491,587.9,586.64,0.716]
[1744902140068,0.30376184,587.89,586.65,0.31297842]
[1744902140268,0.29641491,587.9,586.64,0.716]
[1744902140470,0.29641491,587.9,586.65,0.31298756]
[1744902140471,0.30377093,587.89,586.65,0.31298756]
[1744902140867,0.30377093,587.89,586.64,0.716]
[1744902141463,0.34021127,587.87,586.64,0.716]
[1744902141664,0.30377093,587.86,586.64,0.716]
[1744902141968,0.30380814,587.85,586.64,0.716]
[1744902142169,0.30380814,587.86,586.64,0.716]
[1744902142368,0.552,587.84,586.64,0.716]
[1744902142570,0.30380814,587.83,586.64,0.716]
[1744902142869,0.34024599,587.81,586.64,0.716]
[1744902143070,0.30380814,587.8,586.64,0.716]
[1744902143271,0.34025757,587.79,586.64,0.716]
[1744902143466,0.30380814,587.78,586.64,0.716]
[1744902144372,0.34026915,587.77,586.64,0.716]
[1744902144576,0.30380814,587.76,586.64,0.716]
[1744902144773,0.34028073,587.75,586.64,0.716]
[1744902144969,0.30380814,587.74,586.64,0.716]
[1744902145169,0.34029231,587.73,586.64,0.716]
[1744902145371,0.30380814,587.72,586.64,0.716]
[1744902145874,0.34030389,587.71,586.64,0.716]
[1744902146173,0.30380814,587.7,586.64,0.716]
[1744902146967,0.34031547,587.69,586.64,0.716]
[1744902147168,0.30380814,587.68,586.64,0.716]
[1744902147372,0.34032705,587.67,586.64,0.716]
[1744902147574,0.30380814,587.66,586.64,0.716]
[1744902147969,0.34033863,587.65,586.64,0.716]
[1744902150169,0.30380662,587.64,586.64,0.716]
[1744902150974,0.34033863,587.65,586.64,0.716]
[1744902153373,0.30380568,587.64,586.64,0.716]
[1744902154878,0.34035022,587.63,586.64,0.716]
[1744902157081,0.34035022,587.63,586.63,0.794]
[1744902157780,0.30380025,587.62,586.64,0.31301701]
[1744902158283,0.30380025,587.62,586.62,0.31301701]
[1744902158977,0.34035022,587.63,586.62,0.31301701]
[1744902159782,0.34035022,587.63,586.61,0.63736451]
[1744902160882,0.34035022,587.63,586.62,0.719]
[1744902161280,0.34035022,587.63,586.63,0.778]
[1744902165686,0.851,587.62,586.63,0.778]
[1744902174992,0.851,587.62,586.64,0.3129422]
[1744902175797,0.851,587.62,586.65,0.34091877]
[1744902176101,0.851,587.62,586.66,0.3129422]
[1744902177197,0.851,587.62,586.67,0.34090715]
[1744902177407,0.851,587.62,586.68,0.3129422]
[1744902177998,0.851,587.62,586.69,0.34089553]
[1744902178199,0.851,587.62,586.7,0.3129422]
[1744902178800,0.851,587.62,586.71,0.34088391]
[1744902178999,0.851,587.62,586.72,0.3129422]
[1744902180202,0.851,587.62,586.73,0.34087229]
[1744902180403,0.851,587.62,586.74,0.3129422]
[1744902180597,0.851,587.62,586.75,0.34086067]
[1744902180801,0.851,587.62,586.76,0.31286703]
[1744902181903,0.851,587.62,586.76,0.65372189]
[1744902182100,0.851,587.62,586.77,0.31286703]
[1744902187404,0.851,587.62,586.77,1.18386703]
[1744902187605,0.851,587.62,586.77,0.871]
[1744902187801,0.851,587.62,586.78,0.31286184]
[1744902188002,0.851,587.62,586.77,0.871]
[1744902188310,0.851,587.62,586.78,0.31285989]
[1744902191213,0.851,587.62,586.77,0.871]
[1744902191407,0.851,587.62,586.78,0.31287094]
[1744902192508,0.851,587.62,586.78,0.95087094]
[1744902192809,0.851,587.62,586.78,0.638]
[1744902193008,0.851,587.62,586.79,0.31287061]
[1744902194512,0.29635055,588.08,586.79,0.31287061]
[1744902194805,0.64374831,588.07,586.79,0.31287061]
[1744902195109,0.6437541,588.06,586.79,0.31287061]
[1744902195310,0.64375988,588.05,586.79,0.31287061]
[1744902195507,0.30365275,588.04,586.79,0.31287061]
[1744902196110,0.30365421,588.03,586.8,0.31287029]
[1744902196306,0.34012448,588.02,586.79,0.31287029]
[1744902196508,0.30365421,588.01,586.8,0.31287029]
[1744902196708,0.34013605,588.0,586.79,0.31287029]
[1744902197004,0.34013605,588.0,586.8,0.31287029]
[1744902197005,0.30365421,587.99,586.8,0.31287029]
[1744902197209,0.34014762,587.98,586.79,0.31287029]
[1744902197411,0.30365421,587.97,586.79,0.31287029]
[1744902197603,0.64380761,587.97,586.79,0.31287029]
[1744902197804,0.30365421,587.96,586.79,0.31287029]
[1744902198210,0.3401534,587.97,586.79,0.31287029]
[1744902198411,0.819,587.95,586.79,0.31287029]
[1744902199009,0.819,587.95,586.78,0.93429377]
[1744902200506,0.8083619,587.95,586.78,0.93429377]
[1744902201313,0.8083619,587.95,586.78,0.638]
[1744902201808,0.8083619,587.95,586.78,0.93430639]
[1744902204414,0.8083619,587.95,586.78,0.638]
[1744902205015,0.8083619,587.95,586.79,0.31284749]
[1744902205211,0.8083619,587.95,586.8,0.34083162]
[1744902205417,0.8083619,587.95,586.81,0.31284749]
[1744902205916,0.8083619,587.95,586.81,0.65367331]
[1744902206110,0.8083619,587.95,586.82,0.31284749]
[1744902206618,0.8083619,587.95,586.81,0.34082582]
[1744902207720,0.8083619,587.95,586.81,0.98982582]
[1744902212627,0.8083619,587.95,586.81,1.76382582]
[1744902222735,0.8083619,587.95,586.82,0.31282858]
[1744902222938,0.8083619,587.95,586.83,0.3408142]
[1744902223134,0.8083619,587.95,586.84,0.31282858]
[1744902223336,0.8083619,587.95,586.85,0.34080259]
[1744902223540,0.8083619,587.95,586.86,0.31282858]
[1744902224541,0.8083619,587.95,586.85,1.10380259]
[1744902224742,0.8083619,587.95,586.86,0.31282854]
[1744902226438,0.3401534,587.97,586.86,0.31282854]
[1744902227742,0.3401534,587.97,586.85,1.10380259]
[1744902227942,0.3401534,587.97,586.86,0.31283087]
[1744902228146,0.3401534,587.97,586.85,1.10380259]
[1744902228547,0.3401534,587.97,586.86,0.34079678]
[1744902229543,0.3401534,587.97,586.87,0.665]
[1744902229748,0.3401534,587.97,586.88,0.34078516]
[1744902240243,0.3401534,587.97,586.89,0.31277403]
[1744902241149,0.3401534,587.97,586.9,0.34077355]
[1744902241345,0.3401534,587.97,586.91,0.31277403]
[1744902241546,0.556,588.2,586.92,0.34076194]
[1744902241749,0.556,588.2,586.93,0.31277403]
[1744902241950,0.556,588.2,586.94,0.34075033]
[1744902246956,0.556,588.2,586.95,0.69]
[1744902248959,0.34002618,588.19,586.95,0.69]
[1744902250559,0.34002618,588.19,586.96,0.34073872]
[1744902252559,1.09402618,588.19,586.96,0.34073872]
[1744902256363,0.30406316,588.18,586.97,0.31277082]
[1744902256665,0.64409512,588.18,586.97,0.31277082]
[1744902256963,0.30406316,588.17,586.97,0.31277082]
[1744902257867,0.30406316,588.17,586.96,0.34073872]
[1744902258163,0.30406316,588.17,586.98,0.682]
[1744902258864,0.30406316,588.17,586.99,0.31282346]
[1744902259363,0.34004352,588.16,586.98,0.682]
[1744902259564,0.30411389,588.15,586.99,0.31282307]
[1744902259762,0.34005508,588.14,586.99,0.31282307]
[1744902259963,0.30411389,588.13,586.99,0.31282307]
[1744902260565,0.34006665,588.12,586.99,0.31282307]
[1744902260759,0.30411389,588.11,586.99,0.31282307]
[1744902260958,0.34007821,588.1,586.99,0.31282307]
[1744902261159,0.30411389,588.09,586.99,0.31282307]
[1744902261563,0.34008978,588.08,586.98,0.682]
[1744902261766,0.30411389,588.07,586.98,0.682]
[1744902262059,0.34010135,588.06,586.98,0.682]
[1744902262264,0.30411389,588.05,586.98,0.682]
[1744902262465,0.34011291,588.04,586.98,0.682]
[1744902262765,0.30411389,588.03,586.98,0.682]
[1744902263164,0.34012448,588.02,586.98,0.682]
[1744902263363,0.30411389,588.01,586.98,0.682]
[1744902264063,0.34012448,588.02,586.98,0.682]
[1744902271669,0.34012448,588.02,586.99,0.31276338]
[1744902273775,0.34012448,588.02,586.98,0.97819794]
[1744902274075,0.34012448,588.02,586.99,0.31276341]
[1744902275475,0.34012448,588.02,586.98,0.97819794]
[1744902276476,0.34012448,588.02,586.98,0.682]
[1744902276682,0.34012448,588.02,586.98,0.97820803]
[1744902279279,0.34012448,588.02,586.99,0.544]
[1744902281079,0.802,588.01,586.99,0.544]
[1744902290283,0.802,588.01,586.98,0.97824081]
[1744902291390,0.802,588.01,586.99,0.76]
[1744902293894,0.802,588.01,587.0,0.663]
[1744902303098,0.34012448,588.02,587.0,0.663]
[1744902305807,0.30413158,588.01,587.0,0.663]
[1744902306704,0.615,588.0,587.0,0.663]
[1744902307301,0.95513605,588.0,587.0,0.663]
[1744902308510,0.34014183,587.99,587.0,0.663]
[1744902311214,0.34014183,587.99,587.01,0.31279373]
[1744902311612,0.34014183,587.99,587.0,0.663]
[1744902311812,0.34014183,587.99,587.01,0.31278972]
[1744902312214,0.34014183,587.99,587.0,0.663]
[1744902313316,0.34014183,587.99,587.01,0.31278972]
[1744902314315,0.34014183,587.99,587.02,0.576]
[1744902327522,0.34014183,587.99,587.02,1.4]
[1744902336744,0.34014183,587.99,587.03,0.31274322]
[1744902336934,0.639,588.33,587.03,0.31274322]
[1744902337138,0.30399936,588.32,587.03,0.31274322]
[1744902338142,0.639,588.33,587.03,0.31274322]
[1744902338540,0.639,588.33,587.02,1.69612233]
[1744902339342,0.639,588.33,587.02,0.824]
[1744902339736,0.639,588.33,587.03,0.34069809]
[1744902342143,0.639,588.33,587.03,1.09469809]
[1744902345445,0.639,588.33,587.04,0.31263508]
[1744902346652,0.639,588.33,587.05,0.31241806]
[1744902346846,0.639,588.33,587.06,0.31241806]
[1744902347039,0.639,588.33,587.07,0.31241806]
[1744902347240,0.639,588.33,587.08,0.31241806]
[1744902347443,0.639,588.33,587.03,1.09469809]
[1744902347639,0.639,588.33,587.04,0.31240882]
[1744902349147,0.639,588.33,587.05,0.312517]
[1744902349344,0.639,588.33,587.04,0.312517]
[1744902349542,0.639,588.33,587.05,0.312517]
[1744902349742,0.639,588.33,587.06,0.312517]
[1744902349943,0.639,588.33,587.07,0.312517]
[1744902350147,0.639,588.33,587.04,0.312517]
[1744902350346,0.639,588.33,587.05,0.312517]
[1744902350548,0.639,588.33,587.04,0.312517]
[1744902350744,0.639,588.33,587.05,0.312517]
[1744902350943,0.639,588.33,587.06,0.312517]
[1744902351145,0.639,588.33,587.07,0.312517]
[1744902351348,0.639,588.33,587.04,0.312517]
[1744902351845,0.639,588.33,587.04,0.922517]
[1744902352045,0.639,588.33,587.05,0.312517]
[1744902353554,0.639,588.33,587.05,1.091517]
[1744902353751,0.639,588.33,587.05,0.779]
[1744902353952,0.639,588.33,587.06,0.31248367]
[1744902355352,0.639,588.33,587.05,0.779]
[1744902355547,0.639,588.33,587.06,0.31247374]
[1744902356451,0.639,588.33,587.05,0.779]
[1744902357352,0.639,588.33,587.06,0.31243914]
[1744902361756,0.639,588.33,587.07,0.31243914]
[1744902361958,0.639,588.33,587.08,0.31243914]
[1744902362156,0.639,588.33,587.09,0.31243914]
[1744902362355,0.639,588.33,587.1,0.31243914]
[1744902362558,0.639,588.33,587.11,0.31243914]
[1744902362758,0.639,588.33,587.05,1.0749901]
[1744902362959,0.639,588.33,587.06,0.31236142]
[1744902363155,0.639,588.33,587.07,0.31236142]
[1744902363553,0.639,588.33,587.08,0.31236142]
[1744902363757,0.639,588.33,587.09,0.31236142]
[1744902364059,0.639,588.33,587.1,0.31236142]
[1744902364259,0.639,588.33,587.11,0.31236142]
[1744902364461,0.639,588.33,587.12,0.31236142]
[1744902364657,0.639,588.33,587.06,0.31236142]
[1744902364853,0.639,588.33,587.07,0.31236142]
[1744902365058,0.639,588.33,587.08,0.31236142]
[1744902365359,0.639,588.33,587.09,0.31236142]
[1744902365554,0.639,588.33,587.06,0.31236142]
[1744902365759,0.639,588.33,587.05,1.0749901]
[1744902365956,0.639,588.33,587.06,0.31231891]
[1744902368456,0.639,588.33,587.07,0.31231891]
[1744902368652,0.639,588.33,587.08,0.31231891]
[1744902368857,0.639,588.33,587.05,1.07492969]
[1744902369060,0.639,588.33,587.06,0.31235934]
[1744902369360,0.639,588.33,587.05,0.779]
[1744902369561,0.639,588.33,587.06,0.31237641]
[1744902370261,0.639,588.33,587.06,0.87637641]
[1744902370561,0.639,588.33,587.07,0.31237641]
[1744902371861,0.639,588.33,587.06,0.564]
[1744902372064,0.639,588.33,587.08,0.34066907]
[1744902372263,0.639,588.33,587.09,0.31237907]
[1744902373164,0.639,588.33,587.11,0.34065166]
[1744902373564,0.639,588.33,587.12,0.3123921]
[1744902373767,0.639,588.33,587.14,0.34063426]
[1744902373962,0.639,588.33,587.15,0.3123921]
[1744902374873,0.639,588.33,587.14,0.34063426]
[1744902375065,0.639,588.33,587.15,0.31240735]
[1744902375265,0.639,588.33,587.17,0.34061685]
[1744902375465,0.639,588.33,587.18,0.31240735]
[1744902375665,0.639,588.33,587.2,0.34059945]
[1744902375962,0.639,588.33,587.21,0.31240735]
[1744902376167,0.639,588.33,587.23,0.34058205]
[1744902376360,0.639,588.33,587.24,0.31240735]
[1744902376562,0.639,588.33,587.25,0.31240578]
[1744902376860,0.639,588.33,587.26,0.31240578]
[1744902377062,0.639,588.33,587.24,0.31240578]
[1744902377361,0.639,588.33,587.25,0.31240578]
[1744902377566,0.639,588.33,587.24,0.31240578]
[1744902377967,0.639,588.33,587.25,0.826]
[1744902378171,0.639,588.33,587.27,0.34055885]
[1744902378371,0.639,588.33,587.28,0.31240578]
[1744902379572,0.639,588.33,587.27,0.34055885]
[1744902379770,0.639,588.33,587.28,0.31240421]
[1744902380874,0.639,588.33,587.29,0.31240421]
[1744902381275,0.639,588.33,587.3,0.31240421]
[1744902381575,0.639,588.33,587.31,0.31240421]
[1744902381774,0.639,588.33,587.28,0.31240421]
[1744902381970,0.639,588.33,587.29,0.31240421]
[1744902382168,0.639,588.33,587.28,0.31240421]
[1744902382670,0.639,588.33,587.27,0.34055885]
[1744902382876,0.639,588.33,587.28,0.31230063]
[1744902384177,0.639,588.33,587.27,0.34055885]
[1744902384475,0.639,588.33,587.28,0.31231224]
[1744902385076,0.639,588.33,587.3,0.34054146]
[1744902385278,0.639,588.33,587.31,0.31231224]
[1744902387279,0.639,588.33,587.3,0.34054146]
[1744902387280,0.639,588.33,587.33,0.34052406]
[1744902387479,0.639,588.33,587.34,0.3123947]
[1744902390282,0.639,588.33,587.36,0.34050667]
[1744902390482,0.639,588.33,587.37,0.3123947]
[1744902390678,0.639,588.33,587.39,0.34048928]
[1744902390882,0.639,588.33,587.4,0.3123947]
[1744902391984,0.639,588.33,587.39,0.34048928]
[1744902392183,0.639,588.33,587.4,0.3123318]
[1744902392582,0.639,588.33,587.42,0.34047189]
[1744902392784,0.639,588.33,587.43,0.3123318]
[1744902392984,0.639,588.33,587.45,0.3404545]
[1744902393284,0.639,588.33,587.46,0.3123318]
[1744902395080,0.639,588.33,587.45,0.3404545]
[1744902395278,0.639,588.33,587.46,0.3123082]
[1744902396585,0.639,588.33,587.48,0.34043712]
[1744902396786,0.639,588.33,587.49,0.3123082]
[1744902396988,0.639,588.33,587.51,0.34041973]
[1744902397182,0.639,588.33,587.52,0.3123082]
[1744902397592,0.639,588.33,587.54,0.34040235]
[1744902397792,0.639,588.33,587.55,0.3123082]
[1744902398193,0.639,588.33,587.56,0.34039076]
[1744902398399,0.639,588.33,587.57,0.3123082]
[1744902398596,0.639,588.33,587.56,0.34039076]
[1744902401302,0.639,588.33,587.56,1.09639076]
[1744902401498,0.639,588.33,587.56,1.68839076]
[1744902406095,0.639,588.33,587.57,0.31249251]
[1744902406299,0.639,588.33,587.56,1.68839076]
[1744902406499,0.639,588.33,587.57,0.31250392]
[1744902407307,0.639,588.33,587.56,1.68839076]
[1744902407603,0.639,588.33,587.57,0.31249775]
[1744902409003,0.639,588.33,587.56,1.68839076]
[1744902409806,0.639,588.33,587.57,0.34038497]
[1744902410603,0.639,588.33,587.58,0.31243705]
[1744902411004,0.639,588.33,587.59,0.34037338]
[1744902411204,0.639,588.33,587.6,0.31243705]
[1744902411404,0.639,588.33,587.61,0.3403618]
[1744902411602,0.639,588.33,587.62,0.31243705]
[1744902413702,0.639,588.33,587.63,0.34035022]